Cogmind - Beta 12 @@@ ROGUE MODE // 2023.04.26 @ 18:29:54 Player: Mr Goldstein Result: Destroyed by as-60435 with Assembled Focal Cannon Performance ------------- Evolutions (3) 1500 Regions Visited (8) 1600 Robots Destroyed (19) 95 Value Destroyed (321) 321 Prototype IDs (9) 180 Alien Tech Used (0) 0 Bonus (2074) 2074 TOTAL SCORE: 5770 Bonus ------- Follower Combat Kills 74 Destroyed Z-Imprinter 1000 Triggered Deep Caves Wall 500 Exposed GOLEM Chamber 500 Cogmind --------- Core Integrity 0/700 Matter 112/300 Energy 25/100 System Corruption 0% Temperature Cool (12) Movement Flying (50) Location -7/Deep Caves Parts ------- > --- POWER (1) -------- (None) > --- PROPULSION (5) --- Flying Fortress v7 > --- UTILITY (5) ------ (None) > --- WEAPON (2) ------- RU-N14's Throwing Claymores > --- INVENTORY (5) ---- Surveybot 24 Scanner RU-N14's Throwing Claymores (10) Great Maul Peak State ------------ > --- POWER ------------ Micro Nuclear Core > --- PROPULSION ------- VTOL Module VTOL Module VTOL Module Cesium-ion Thruster Improved Cesium-ion Thruster > --- UTILITY ---------- Improved Sensor Array Improved Signal Interpreter Surveybot 24 Scanner Surveybot 24 Chip Shield Generator > --- WEAPON ----------- RU-N14's Throwing Claymores > --- INVENTORY -------- Improved Signal Interpreter RU-N14's Throwing Claymores Great Maul [Rating: 50] Favorites ----------- Power Micro Nuclear Core Engine Light Ion Engine Power Core Micro Nuclear Core Propulsion VTOL Module Treads Light Treads Flight Unit VTOL Module Utility Shield Generator Device Shield Generator Processor Advanced Visual Processing Unit Weapon Great Maul Launcher Grenade Launcher Special Weapon RU-N14's Throwing Claymores Impact Weapon Great Maul Build | -11 -10 -9 -8 -7 -7 -7 -7 -7 ------- Run | Jun Mat Mat Mat Fac Low Low Zio Dee Slots Evolved 6 | . . 2 2 2 . . . . Power . | . . . . . . . . . Propulsion 3 | . . 1 1 1 . . . . Utility 3 | . . 1 1 1 . . . . Weapon . | . . . . . . . . . Parts Attached 50 | 2 2 10 8 10 1 1 2 14 Power 6 | . . 2 3 1 . . . . Engine 4 | . . 2 2 . . . . . Core 2 | . . . 1 1 . . . . Reactor . | . . . . . . . . . Propulsion 15 | 2 . 4 3 3 1 . . 2 Treads 4 | 2 . 2 . . . . . . Leg . | . . . . . . . . . Wheel . | . . . . . . . . . Hover . | . . . . . . . . . Flight 11 | . . 2 3 3 1 . . 2 Utility 16 | . 1 3 2 3 . . . 7 Device 11 | . . 3 1 1 . . . 6 Storage . | . . . . . . . . . Processor 5 | . 1 . 1 2 . . . 1 Hackware . | . . . . . . . . . Protection . | . . . . . . . . . Artifact . | . . . . . . . . . Weapon 13 | . 1 1 . 3 . 1 2 5 Energy Gun . | . . . . . . . . . Energy Cannon . | . . . . . . . . . Ballistic Gun . | . . . . . . . . . Ballistic Cannon . | . . . . . . . . . Launcher 3 | . . 1 . 2 . . . . Special Weapon 6 | . . . . . . 1 1 4 Impact Weapon 4 | . 1 . . 1 . . 1 1 Slashing Weapon . | . . . . . . . . . Piercing Weapon . | . . . . . . . . . Special Melee Weapon . | . . . . . . . . . Unidentified Prototypes 3 | . . . . 1 . . 1 1 Parts Lost 9 | . . . . . 2 . . 7 Power . | . . . . . . . . . Propulsion 7 | . . . . . 2 . . 5 Utility 2 | . . . . . . . . 2 Weapon . | . . . . . . . . . Highest Loss Streak 6 | . . . . . 2 . . 6 To Critical Strikes . | . . . . . . . . . Average Slot Usage (%) 79 | . 38 66 78 89 94 90 88 71 Engine 1 | . . 1 9 . . . . . Core 4 | . . . . 6 7 7 7 5 Treads 4 | . 28 25 . . . . . . Flight 26 | . . 3 27 38 32 30 30 28 Device 14 | . . 12 18 15 15 15 15 14 Processor 17 | . 6 11 15 22 23 23 23 14 Launcher 1 | . . 1 . 3 7 . . . Special Weapon 2 | . . . . . . 5 4 5 Impact Weapon 5 | . 4 11 9 2 7 7 6 . Naked Turns 5 | . . . . . . . . 5 Heaviest Build 22 | . 2 8 14 16 16 16 21 22 Greatest Support 50 | 20 3 40 16 22 22 18 18 50 Greatest Overweight (x) 1 | . . 1 . . . . 1 1 Average Overweight (x) . | . . . . . . . . . Largest Inventory Capacity 5 | 5 5 5 5 5 5 5 5 5 Average Capacity 5 | 5 5 5 5 5 5 5 5 5 Most Carried 5 | . 3 5 5 5 5 5 5 5 Average Carried 4 | . 1 3 4 4 4 5 4 4 Final Capacity 5 | 5 5 5 5 5 5 5 5 5 Final Carried 5 | . 2 2 5 5 5 5 5 3 Class Distribution -------------------- 66% | Scout 26% | Mutant 4% | Sprinter Dominant Class ---------------- Mutant | -10/Materials Mutant | -9/Materials Scout | -8/Materials Scout | -7/Factory Scout | -7/Lower Caves Scout | -7/Lower Caves Scout | -7/Zion Mutant | -7/Deep Caves Resources | -11 -10 -9 -8 -7 -7 -7 -7 -7 ----------- Run | Jun Mat Mat Mat Fac Low Low Zio Dee Matter Collected 563 | 151 87 89 . 73 54 57 36 16 Remotely . | . . . . . . . . . Salvage Created 547 | . 39 189 59 116 . . . 144 Parts 37 | . 5 12 5 7 . . . 8 Haulers Intercepted 2 | . . . 1 1 . . . . Recyclers Shooed . | . . . . . . . . . Parts Field Recycled . | . . . . . . . . . Retrieved Matter . | . . . . . . . . . Parts Self-Destructed 4 | . . . . . . 4 . . Prevented . | . . . . . . . . . Kills | -11 -10 -9 -8 -7 -7 -7 -7 -7 ------- Run | Jun Mat Mat Mat Fac Low Low Zio Dee Combat Hostiles Destroyed 36 | . 1 3 . 3 . . . 29 Melee 1 | . 1 . . . . . . . Cannons 2 | . . . . . . . . 2 AOE 33 | . . 3 . 3 . . . 27 Classes Destroyed 10 | . 1 5 1 1 . . . 2 Worker 1 | . . 1 . . . . . . Tunneler 1 | . . 1 . . . . . . Hauler 2 | . . . 1 1 . . . . Recycler 1 | . . 1 . . . . . . Operator 1 | . . . . 1 . . . . Watcher 4 | . . 3 . 1 . . . . Swarmer 6 | . . 3 . 3 . . . . Grunt 1 | . 1 . . . . . . . Z-Technician 5 | . . . . . . . . 5 Assembler 1 | . . . . . . . . 1 Assembled 28 | . . . . . . . . 28 Best Kill Streak 24 | . 1 7 1 3 . . . 24 Combat Bots Only 23 | . 1 3 . 3 . . . 23 Max Kills in Single Turn 13 | . 1 3 1 1 . . . 13 Gunslinging . | . . . . . . . . . Exploded 12 | . . 2 . 1 . . . 12 Melee 1 | . 1 . . . . . . . Uniques/NPCs Destroyed 1 | . . . . . . . . 1 Z-Imprinter (-7/Deep Caves) Combat | -11 -10 -9 -8 -7 -7 -7 -7 -7 -------- Run | Jun Mat Mat Mat Fac Low Low Zio Dee Damage Taken 1536 | . 13 26 59 18 301 . . 1119 Core 748 | . . . . 9 84 . . 655 Absorbed by Shields 77 | . . 3 22 9 29 . . 14 Core Remaining (%) 100 | 100 100 100 100 . . . . . Volleys Fired 27 | . . 2 . 6 . . . 19 Largest 1 | . . 1 . 1 . . . 1 Hottest 30 | . . 30 . 30 . . . . Shots Fired 28 | . . 2 . 6 . 1 . 19 Gun . | . . . . . . . . . Cannon . | . . . . . . . . . Launcher 9 | . . 2 . 6 . 1 . . Special 19 | . . . . . . . . 19 Kinetic . | . . . . . . . . . Thermal . | . . . . . . . . . Explosive 28 | . . 2 . 6 . 1 . 19 Electromagnetic . | . . . . . . . . . Robot Hit Streak 2 | . . . . . . . . 2 Robot Miss Streak 4 | . . 1 . 3 . . . 4 Penetration Max . | . . . . . . . . . Secondary Targets . | . . . . . . . . . Shots Hit Robots 17 | . 1 6 1 4 . . . 5 Core Hits 59 | . 2 8 1 6 . . . 42 Critical Kills . | . . . . . . . . . Critical Parts Destroyed 2 | . . 1 . 1 . . . . Critical Strikes 2 | . . 1 . 1 . . . . Smash 2 | . . 1 . 1 . . . . Melee Attacks 52 | . 2 8 9 6 7 . 19 1 Impact 52 | . 2 8 9 6 7 . 19 1 Slashing . | . . . . . . . . . Piercing . | . . . . . . . . . Sneak Attacks 5 | . 1 2 1 1 . . . . Combat Hostiles 1 | . 1 . . . . . . . Follow-up Attacks . | . . . . . . . . . Damage Inflicted 7797 | . 48 394 59 460 . . . 6836 Guns . | . . . . . . . . . Cannons . | . . . . . . . . . Explosions 6923 | . . 178 . 253 . . . 6492 Melee 646 | . 46 216 59 207 . . . 118 Ramming 2 | . 2 . . . . . . . Kinetic . | . . . . . . . . . Thermal 2180 | . . . . 30 . . . 2150 Explosive 4743 | . . 178 . 223 . . . 4342 Electromagnetic . | . . . . . . . . . Impact 646 | . 46 216 59 207 . . . 118 Slashing 226 | . . . . . . . . 226 Piercing . | . . . . . . . . . Highest Corruption 6 | . . . . . 6 6 6 . Average Corruption 6 | . . . . . 6 6 6 . Corruption Purged . | . . . . . . . . . Corruption Blocked . | . . . . . . . . . Effects 7 | . . . . . 1 4 2 . Message Errors 2 | . . . . . . . 2 . Matter Fused 1 | . . . . . 1 . . . Energy Discharges 2 | . . . . . . 2 . . Data Loss (minor) 1 | . . . . . . 1 . . Misfires 1 | . . . . . . 1 . . Overload Shots . | . . . . . . . . . Overflow Damage 1016 | . . 78 . 69 . . . 869 Projectiles 13 | . . . . . . . . 13 Explosions 758 | . . . . . . . . 758 Melee 245 | . . 78 . 69 . . . 98 Knockbacks . | . . . . . . . . . Impact . | . . . . . . . . . Kinetic . | . . . . . . . . . Secondary . | . . . . . . . . . Self-Inflicted Damage 35 | . 1 19 . 15 . . . . Shots 2 | . . 1 . 1 . . . . Rammed 1 | . 1 . . . . . . . Targets Rammed 1 | . 1 . . . . . . . Kicked . | . . . . . . . . . Crushed . | . . . . . . . . . Highest Temperature 17 | . . . 11 17 17 14 . 13 Average Temperature 6 | . . . 6 5 8 7 . 6 Received Heat Transfer 166 | . 6 4 18 . 9 . . 129 Siege Activations . | . . . . . . . . . Robots Corrupted . | . . . . . . . . . Combat Hostiles . | . . . . . . . . . Parts Fried 12 | . . 7 . 5 . . . . Impact Corruptions 8 | . . 4 . 2 . . . 2 Robots Melted . | . . . . . . . . . Combat Hostiles . | . . . . . . . . . Parts Melted . | . . . . . . . . . Heat Transferred 50 | . . . . 50 . . . . Parts Sabotaged . | . . . . . . . . . Parts Stolen . | . . . . . . . . . Parts Stripped . | . . . . . . . . . Power Chain Reactions . | . . . . . . . . . Missiles Intercepted . | . . . . . . . . . Alert | -11 -10 -9 -8 -7 -7 -7 -7 -7 ------- Run | Jun Mat Mat Mat Fac Low Low Zio Dee Peak Influence 554 | . 83 199 366 554 . . . . Initial 165 | . . 34 83 165 . . . . Average 182 | . 33 92 191 299 . . . . Maximum Alert Level 2 | . . . 1 2 . . . . Low Security (%) 65 | 100 100 100 46 42 . . . . Level 1 24 | . . . 53 32 . . . . Level 2 9 | . . . . 25 . . . . Level 3 . | . . . . . . . . . Level 4 . | . . . . . . . . . Level 5 . | . . . . . . . . . High Security . | . . . . . . . . . Max Security . | . . . . . . . . . Squads Dispatched 9 | . 2 1 3 3 . . . . Investigation 1 | . . . . 1 . . . . Extermination . | . . . . . . . . . Reinforcement 8 | . 2 1 3 2 . . . . Assault . | . . . . . . . . . Garrison . | . . . . . . . . . Intercept . | . . . . . . . . . Searches Triggered . | . . . . . . . . . Construction Impeded . | . . . . . . . . . Haulers Reinforced . | . . . . . . . . . Active Scanning Responses . | . . . . . . . . . Cargo Convoy Interrupts . | . . . . . . . . . Stealth | -11 -10 -9 -8 -7 -7 -7 -7 -7 --------- Run | Jun Mat Mat Mat Fac Low Low Zio Dee Distress Signals 4 | . . 2 1 1 . . . . Communications Jammed . | . . . . . . . . . Distress Signals . | . . . . . . . . . Times Spotted 80 | . 5 8 17 14 1 . . 35 Peak Tracking Total 28 | . 2 3 9 5 1 . . 28 Tactical Retreats 11 | . . 1 5 2 1 . . 2 Traps | -11 -10 -9 -8 -7 -7 -7 -7 -7 ------- Run | Jun Mat Mat Mat Fac Low Low Zio Dee Traps Triggered 4 | . . . . 4 . . . . Indirectly . | . . . . . . . . . Trap Hack Attempts . | . . . . . . . . . Triggered . | . . . . . . . . . Disarmed . | . . . . . . . . . Reprogrammed . | . . . . . . . . . Reused . | . . . . . . . . . Traps Extracted . | . . . . . . . . . Installed . | . . . . . . . . . Triggered . | . . . . . . . . . Machines | -11 -10 -9 -8 -7 -7 -7 -7 -7 ---------- Run | Jun Mat Mat Mat Fac Low Low Zio Dee Machines Disabled 6 | . . . . 2 . . . 4 Max in Single Turn 2 | . . . . 2 . . . 2 Machines Repaired . | . . . . . . . . . Machines Sabotaged . | . . . . . . . . . Overloaded Fab Kills . | . . . . . . . . . Hacking | -11 -10 -9 -8 -7 -7 -7 -7 -7 --------- Run | Jun Mat Mat Mat Fac Low Low Zio Dee Machines Accessed 11 | . 2 2 1 5 . 1 . . Terminals 8 | . 2 2 1 3 . . . . Fabricators 2 | . . . . 2 . . . . Repair Stations . | . . . . . . . . . Recycling Units . | . . . . . . . . . Scanalyzers . | . . . . . . . . . Garrison Access . | . . . . . . . . . Total Hacks 31 | . 4 9 5 12 . 1 . . Successful 14 | . 3 4 3 3 . 1 . . Failed 17 | . 1 5 2 9 . . . . Catastrophic 3 | . . . . 3 . . . . Database Lockouts . | . . . . . . . . . Manual 24 | . 4 7 3 9 . . 1 . Terminals 25 | . 4 9 5 7 . . . . Fabricators 5 | . . . . 5 . . . . Repair Stations . | . . . . . . . . . Recycling Units . | . . . . . . . . . Scanalyzers . | . . . . . . . . . Garrison Access . | . . . . . . . . . Terminal Hacks 7 | . 1 2 2 1 . 1 . . Robot Analysis 1 | . . . . 1 . . . . Prototype ID Bank 4 | . 1 2 1 . . . . . Open Door 1 | . . . . . . 1 . . Branch Access Points 1 | . . . 1 . . . . . Fabricator Hacks . | . . . . . . . . . Repair Station Hacks . | . . . . . . . . . Recycling Unit Hacks . | . . . . . . . . . Scanalyzer . | . . . . . . . . . Garrison Access Hacks . | . . . . . . . . . Unauthorized Hacks 7 | . 2 2 1 2 . . . . Terminals 6 | . 2 2 1 1 . . . . Assimilate 1 | . 1 . . . . . . . Botnet 5 | . 1 2 1 1 . . . . Fabricators 1 | . . . . 1 . . . . Liberate 1 | . . . . 1 . . . . Repair Stations . | . . . . . . . . . Recycling Units . | . . . . . . . . . Scanalyzers . | . . . . . . . . . Garrison Access . | . . . . . . . . . Data Cores Recovered . | . . . . . . . . . Used . | . . . . . . . . . Hacking Detections 8 | . 1 1 1 5 . . . . Full Trace Events . | . . . . . . . . . Feedback Events . | . . . . . . . . . Feedback Blocked . | . . . . . . . . . Robot Schematics Acquired 3 | . . . . . . . 3 . Robots Built . | . . . . . . . . . Authchips . | . . . . . . . . . Time . | . . . . . . . . . Total Robot Build Rating . | . . . . . . . . . Part Schematics Acquired 15 | . . . . . . . 15 . Parts Built . | . . . . . . . . . Authchips . | . . . . . . . . . Time . | . . . . . . . . . Total Part Build Rating . | . . . . . . . . . Parts Repaired . | . . . . . . . . . Time . | . . . . . . . . . Parts Recycled . | . . . . . . . . . Recycled Matter . | . . . . . . . . . Retrieved Matter . | . . . . . . . . . Retrieved Components . | . . . . . . . . . Parts Scanalyzed . | . . . . . . . . . Part Schematics Acquired . | . . . . . . . . . Parts Damaged . | . . . . . . . . . Bothacking | -11 -10 -9 -8 -7 -7 -7 -7 -7 ------------ Run | Jun Mat Mat Mat Fac Low Low Zio Dee Used RIF Installer . | . . . . . . . . . Robots Hacked . | . . . . . . . . . Non-combat . | . . . . . . . . . Combat . | . . . . . . . . . Robot Hacks Applied . | . . . . . . . . . Relay Couplers Released . | . . . . . . . . . Fabnet Peak Effective % . | . . . . . . . . . Robots Rewired . | . . . . . . . . . Allies Hacked . | . . . . . . . . . Hacks Repelled . | . . . . . . . . . Allies | -11 -10 -9 -8 -7 -7 -7 -7 -7 -------- Run | Jun Mat Mat Mat Fac Low Low Zio Dee Total Allies 9 | . 1 . . . . . 8 . Largest Group 8 | . 1 . . . . . 8 8 Highest-Rated Group 346 | . 10 . . . . . 346 346 Highest-Rated Ally 96 | . 10 . . . . . 96 96 Total Orders . | . . . . . . . . . Ally Attacks 62 | . . . . . . . . 62 Total Damage 1143 | . . . . . . . . 1143 Kills 14 | . . . . . . . . 14 Allies Corrupted . | . . . . . . . . . Allies Melted . | . . . . . . . . . Intel | -11 -10 -9 -8 -7 -7 -7 -7 -7 ------- Run | Jun Mat Mat Mat Fac Low Low Zio Dee Robot Analysis Total 1 | . . . . 1 . . . . Derelict Logs Recovered 3 | . . . . . . 1 2 . Drone Launches . | . . . . . . . . . Drone Recoveries . | . . . . . . . . . Exploration | -11 -10 -9 -8 -7 -7 -7 -7 -7 ------------- Run | Jun Mat Mat Mat Fac Low Low Zio Dee Turns Passed 1522 | 19 72 178 173 249 142 90 285 314 Spaces Moved 3475 | 25 119 248 399 760 459 339 656 470 Core 429 | 22 119 210 . . . . . 78 Treads 5 | 3 . 2 . . . . . . Legs . | . . . . . . . . . Wheels . | . . . . . . . . . Hover . | . . . . . . . . . Flight 3041 | . . 36 399 760 459 339 656 392 Fastest Speed 23 | 50 50 37 27 23 23 26 26 23 Average Speed 29 | 63 50 51 31 23 25 26 28 29 Slowest Speed 160 | 160 50 160 37 24 26 26 102 102 Overloaded Moves . | . . . . . . . . . Propulsion Burnouts . | . . . . . . . . . Robots Hopped 11 | . . . 5 4 . 2 . . Cave-ins Triggered 1 | . . . . . 1 . . . Exploration Rate (%) 44 | 3 28 33 36 31 60 57 79 75 Regions Visited 8 Branch Regions 4 Pre-discovered Areas 3 | . . . . . . 1 2 . Known Exits Taken 7 | . 1 1 1 1 1 1 1 . Unknown Exits Taken 1 | 1 . . . . . . . . Scrap Searched 10 | . . . . . 3 4 3 . Spaces Dug 36 | . 1 . 5 4 4 . 3 19 Terrain Destroyed 242 | . 1 12 5 57 4 9 3 151 Melee 13 | . 1 . 5 . 4 . 3 . Projectile 5 | . . . . . . . . 5 AOE 224 | . . 12 . 57 . 9 . 146 Terrain Rammed . | . . . . . . . . . Walls Destroyed . | . . . . . . . . . Machines Disabled . | . . . . . . . . . Actions | -11 -10 -9 -8 -7 -7 -7 -7 -7 --------- Run | Jun Mat Mat Mat Fac Low Low Zio Dee Total 3831 | 26 126 283 424 809 472 338 722 631 Wait 159 | . . 6 5 4 3 . 32 109 Move 3445 | 24 118 247 388 751 457 335 655 470 Hop 10 | . . . 5 4 . 1 . . Pick Up 23 | . 3 3 4 5 2 . 5 1 Fast Attach 23 | 2 1 4 4 6 . 1 1 4 Attach 21 | . 1 5 . 3 1 . 1 10 Detach 16 | . . 2 1 2 . . 2 9 Swap 6 | . . 1 4 1 . . . . Drop 31 | . . 5 4 5 1 1 7 8 Fire 27 | . . 2 . 6 . . . 19 Melee 52 | . 2 8 9 6 7 . 19 1 Ram 1 | . 1 . . . . . . . Kick . | . . . . . . . . . Crush . | . . . . . . . . . Escape Stasis 17 | . . . . 16 1 . . . Rewire . | . . . . . . . . . Trap . | . . . . . . . . . Miscellaneous . | . . . . . . . . . Route ------- -11/Junkyard -10/Materials -9/Materials (discovered 2 exits: *Mat x2) -8/Materials -7/Factory (discovered 2 exits: *Fac / *Low) -7/Lower Caves -7/Lower Caves -7/Zion (discovered 2 exits: *Dee / [*Pro]) -7/Deep Caves (discovered 1 exit: [Pro]) History --------- Turn | Location | Event 12 | -11/Junkyard | Discovered new exit (range 14) 20 | -11/Junkyard | Entered Materials 90 | -10/Materials | Discovered new exit (range 3) 91 | -10/Materials | Identified exit to Materials 92 | -10/Materials | Entered another Materials area 92 | -9/Materials | Evolved 2 slots: Propulsion x1, Utility x1 201 | -9/Materials | Discovered new exit (range 3) 202 | -9/Materials | Identified exit to Materials 264 | -9/Materials | Discovered exit to Materials (range 16) 270 | -9/Materials | Entered another Materials area 270 | -8/Materials | Evolved 2 slots: Propulsion x1, Utility x1 438 | -8/Materials | Discovered new exit (range 20) 443 | -8/Materials | Identified exit to Factory 443 | -8/Materials | Entered Factory 443 | -7/Factory | Evolved 2 slots: Propulsion x1, Utility x1 607 | -7/Factory | Discovered new exit (range 19) 612 | -7/Factory | Build established: Scout 619 | -7/Factory | Identified exit to Factory 686 | -7/Factory | Discovered new exit (range 10) 692 | -7/Factory | Identified exit to Lower Caves 692 | -7/Factory | Entered Lower Caves 743 | -7/Lower Caves | Crushed by falling debris 747 | -7/Lower Caves | Spotted B-75 Beast 784 | -7/Lower Caves | Encountered a Warlord checkpoint 795 | -7/Lower Caves | Discovered new exit (range 14) 798 | -7/Lower Caves | Identified exit to Lower Caves 834 | -7/Lower Caves | Entered another Lower Caves area 912 | -7/Lower Caves | Learned location of Extension (-4) 916 | -7/Lower Caves | Discovered new exit (range 9) 918 | -7/Lower Caves | Identified exit to Zion 924 | -7/Lower Caves | Entered Zion 936 | -7/Zion | Discovered new exit (range 11) 938 | -7/Zion | Given A8's code to call for help 940 | -7/Zion | Found CR-A16's Pointy Stick 961 | -7/Zion | Given the Hacking Drone Bay 962 | -7/Zion | Found Prototype Device 976 | -7/Zion | System corruption cleaned by Quarantine Array 992 | -7/Zion | Learned location of Recycling (-7) 994 | -7/Zion | Learned Factory recycling unit intel 1003 | -7/Zion | Gained Derelict followers 1010 | -7/Zion | Gained Derelict followers 1019 | -7/Zion | Learned Factory terminal intel 1040 | -7/Zion | Learned location of 1 exit from Factory 1062 | -7/Zion | Loaded intel: 4 derelict terminal locations 1069 | -7/Zion | Found Prototype Special Weapon 1069 | -7/Zion | Identified RU-N14's Throwing Claymores 1071 | -7/Zion | Found RU-N14's Throwing Claymores 1073 | -7/Zion | Found RU-N14's Throwing Claymores 1075 | -7/Zion | Found RU-N14's Throwing Claymores 1138 | -7/Zion | Enhanced Grunt warped into view, answering call for help 1139 | -7/Zion | Enhanced Grunt warped into view, answering call for help 1173 | -7/Zion | Discovered new exit (range 4) 1176 | -7/Zion | Saw the warning signs outside the Deep Caves entrance 1176 | -7/Zion | Identified exit to Deep Caves 1209 | -7/Zion | Entered Deep Caves 1209 | -7/Deep Caves | Accompanied by 8 allies 1246 | -7/Deep Caves | Found Surveybot 24 Scanner 1251 | -7/Deep Caves | Found Surveybot 24 Chip 1325 | -7/Deep Caves | Z-Facility disabled 1343 | -7/Deep Caves | Attacked by Z-Imprinter 1352 | -7/Deep Caves | Destroyed Z-Imprinter 1381 | -7/Deep Caves | Discovered new exit (range 13) 1467 | -7/Deep Caves | Exposed GOLEM chamber 1468 | -7/Deep Caves | Triggered Deep Caves wall 1469 | -7/Deep Caves | Spotted as-60435 1469 | -7/Deep Caves | Destroyed AS-97219 1477 | -7/Deep Caves | Core integrity fell below 50% 1492 | -7/Deep Caves | Destroyed 23 combat bots 1507 | -7/Deep Caves | Lost 6 parts (5n1u) 1514 | -7/Deep Caves | Spotted as-22357 1518 | -7/Deep Caves | Spotted AS-82762 1519 | -7/Deep Caves | Core integrity fell below 20% 1519 | -7/Deep Caves | Found Prototype Flight Unit 1519 | -7/Deep Caves | Identified Flying Fortress v7 1523 | -7/Deep Caves | Destroyed by as-60435 with Assembled Focal Cannon Last Messages --------------- 01471_ AT-OP7(g) destroyed. 01473_ C3-VXK(s) destroyed. 01473_ VTOL Module destroyed. 01473_ Imp. Cesium-ion Thruster destroyed. 01474_ Cesium-ion Thruster destroyed. 01474_ Dropped Mic. Nuclear Core. 01475_ GOLEM Unit springs to life. 01476_ VTOL Module destroyed. 01476_ Imp. Signal Interpreter destroyed. 01514_ Surveybot 24 Chip destroyed. 01515_ as-22357: "DSI9AT1D G8OHIBQ29FWG 26R186 QD12WHW8W33 TDK1 81FTS" 01518_ Slug penetrates as-39972. 01519_ as-41809 released from Mobile Assembly Unit. 01519_ Acquired Prototype Flight Unit. 01519_ Identified Flying Fortress v7. 01521_ Slug penetrates Wall. 01523_ Destroyed Asb. Hover System. 01523_ as-71275 destroyed. 01523_ A GOLEM Unit tumbles out of the Wall Chamber. 01523_ as-03432 destroyed. Map ----- +----------------------------------------------------+ | | | ????????????????????????????????????????????? | | ???????????????????????????????????#####????? | | ?????????????????????????????????## #####? | | ?????????????? ??????????????????# ## | | ???????????? ?#??#????????????# | | ??????????? # ? ????????????# | | ??????????? # # ???????????## ### | | ?????????? # ?###?????### ##?#### | | ?????????? # ?# #????## #?###### | | ????????? ?# #????# ######## | | ?????????"" ?# #????# ######### | | ????????" ## ###### ####### | | ????????" # ## ##### | | ????????" | | ????????# | | ?????????" ## | | ?????????" ##### #### | | ?????????" G l #### ##### ### | | ????????"" ! ############### ### " | | ????????"G ! ### ########### ### "" | | ??????### ### ############ ### " | | ??????" # ############# | | ????? ################# | | ????? al ################ | | ????? @ ############## | | ????? ! ################ | | ????? a =! s ############## | | ?????? a a = * ###### #### | | ?????? * ##### ## | | ??????? A h ##### | | ???????## g[ * ] ####### | | ??????#!GG ######## | | ??????#!GG [ ######### | | ????????!" * ;######## | | ?????????" = ######### # | | ?????????" ######## | | ????????# b [ ;######## | | ????????" = ######### | | ????????" = "######## # | | ????????" ! !! # | | ????????""" ! ! = ! ## | | ????????? ### | | ?????????" ##### #### | | ?????????? ##### #### | | ?????????? ####### #### | | ?????????? # # ########## ##### | | ??????????? #### ## ## ###?############## | | ??????????? ###### ## ##################### | | ??????????? ##### ######?############## | +----------------------------------------------------+ Best States ------------- Heat Dissipation 34 Energy Generation 15 Energy Capacity 275 Matter Stores 300 Matter Capacity 300 Sight Range 20 Robot Scan Range 15 Terrain Scan Range 24 Terrain Scan Density 2010 Evasion (%) 65 Melee Accuracy 6 Recoil Reduction 2 Item Schematics ----------------- Adv. Terrain Scanner | -7/Zion | Archive Arm. Huge Wheel | -7/Zion | Archive Spk. Medium Treads | -7/Zion | Archive Lightning Gun | -7/Zion | Archive Adv. Sensor Array | -7/Zion | Archive Force Field | -7/Zion | Archive Armor Integrity Analyzer | -7/Zion | Archive Mak. Power Source | -7/Zion | Archive Imp. Coolant Injector | -7/Zion | Archive Point Defense System | -7/Zion | Archive Mak. Leg | -7/Zion | Archive Proton Cannon | -7/Zion | Archive Greatsword | -7/Zion | Archive 0b10 Decoder Chip [Scout] | -7/Zion | Archive Weapon Cycler | -7/Zion | Archive Robot Schematics ------------------ G-47 Trooper | -7/Zion | Archive L-31 Rogue | -7/Zion | Archive B-48 Gladiator | -7/Zion | Archive Fabricated ------------ Nothing Alien Tech Used ----------------- None Achievements -------------- None Challenges ------------ None Game ------ Seed AntigravTargetSword Manual? 0 Play Time 00:33:52 Cumulative 148.5 hours Start 2023.04.26 @ 17:04:25 End 2023.04.26 @ 18:29:54 Sessions 1 Manual Loads 0 Difficulty Rogue Special Mode None Game No. 430 Rogue 430 Adventurer 0 Explorer 0 Win Type - Total 7 Types 6/0/0/1/0/0/0/0/0 Lore% 65 Gallery% 70 Achievement% 61 Wizard Run 0 Options --------- ASCII 0 Keyboard 0 Movement Numpad Keybinds 0 Fullscreen 1 Font 16/SmallcapsGlow Map View 75x55 Tactical HUD 1 Map Filters NONE Filters NONE Steam 1 RUN: b619c259-962d-4573-b43a-7e5add52de8d